{"text_format":"3","workbook":"xlsx","n_sheets":14,"sheets":["tipy","souhrn","I","II","III","IV","V","VI","VII","VIII","IX","X","XI","XII"],"not_rendered":{"charts":1,"defined_names":27},"read":"whole","date_system":"1900"}

{"sheet":"tipy","index":0,"n_rows":18,"n_cols":1,"rows_kept":18}
["TIPY PRO ŠABLONU"]
["Je nějaký snadný způsob, jak přecházet mezi souhrnným listem trendů výdajů a podrobnostmi měsíčních výdajů?"]
["Pokud chcete rychle přejít na výdaje v určitém měsíci, klikněte na příslušný navigační odkaz nad grafem, jako je třeba navigační odkaz Leden v buňce B2. Pokud se potom budete chtít vrátit zpět do listu trendů výdajů, klikněte na navigační odkaz Souhrn v buňce D1. "]
["Pokud se budete chtít vrátit do tohoto listu s tipy, vyberte v souhrnném listu buňku N2. Ve všech měsíčních listech vyberte buňku E1."]
["Jak přidám nový typ výdaje do listu Souhrn výdajů nebo nové měsíční výdaje?"]
["Souhrn výdajů pod grafem a podrobnosti výdajů za jednotlivé měsíce jsou tabulky Excelu. Když chcete do tabulky Excelu přidat nové řádky, udělejte jednu z těchto věcí:"]
[{"$f":"ROW(A1)&\". Pokud tabulka nemá řádek Celkem, začněte psát pod ní, a až stisknete Enter nebo Tabulátor, automaticky se rozšíří.\"","v":"1. Pokud tabulka nemá řádek Celkem, začněte psát pod ní, a až stisknete Enter nebo Tabulátor, automaticky se rozšíří."}]
[{"$f":"ROW(A2)&\". Umístěte ukazatel do poslední buňky nad řádek Celkem, třeba součet za poslední výdaje, a stiskněte klávesu Tabulátor.\"","v":"2. Umístěte ukazatel do poslední buňky nad řádek Celkem, třeba součet za poslední výdaje, a stiskněte klávesu Tabulátor."}]
[{"$f":"ROW(A3)&\". Klikněte pravým tlačítkem myši v tabulce a v místní nabídce přejděte na Vložit a potom klikněte na Řádky tabulky nad nebo Řádky tabulky pod.\"","v":"3. Klikněte pravým tlačítkem myši v tabulce a v místní nabídce přejděte na Vložit a potom klikněte na Řádky tabulky nad nebo Řádky tabulky pod."}]
[{"$f":"ROW(A4)&\". V pravém dolním rohu tabulky umístěte ukazatel myši na úchyt pro změnu velikosti tabulky a tažením dolů zvyšte počet dostupných řádků tabulky.\"","v":"4. V pravém dolním rohu tabulky umístěte ukazatel myši na úchyt pro změnu velikosti tabulky a tažením dolů zvyšte počet dostupných řádků tabulky."}]
["Zadejte výdaj na list souhrn do tabulky SouhrnVýdajů do sloupce Výdaje."]
["Přidejte částku výdaje pro každý typ výdaje v listu měsíce, ke kterému se výdaj vztahuje."]
["Příklad: Výdaj 1 se vztahuje k měsícům leden až červen a prosinci. "]
[{"$f":"ROW(A1)&\". Na listu souhrn se zadá do sloupce Výdaj v tabulce SouhrnVýdajů hodnota Výdaj 1 (jako název pro typ výdajů).\"","v":"1. Na listu souhrn se zadá do sloupce Výdaj v tabulce SouhrnVýdajů hodnota Výdaj 1 (jako název pro typ výdajů)."}]
[{"$f":"ROW(A2)&\". Pro každý měsíc, kdy dojde k výdajům, zadejte požadovanou částku výdajů do listu odpovídajícího měsíce.\"","v":"2. Pro každý měsíc, kdy dojde k výdajům, zadejte požadovanou částku výdajů do listu odpovídajícího měsíce."}]
[{"$f":"ROW(A3)&\". Typ výdajů z listu SouhrnVýdajů vytvoří seznam kategorií pro sloupec Kategorie v listu každého měsíce.\"","v":"3. Typ výdajů z listu SouhrnVýdajů vytvoří seznam kategorií pro sloupec Kategorie v listu každého měsíce."}]
[{"$f":"ROW(A4)&\". Pomocí seznamu kategorií ve sloupci Kategorie vyberte pro zadanou částku výdajů odpovídající typ výdajů.\"","v":"4. Pomocí seznamu kategorií ve sloupci Kategorie vyberte pro zadanou částku výdajů odpovídající typ výdajů."}]
[{"$f":"ROW(A5)&\". Pokud chcete pro některý měsíc přidat nové výdaje, přidejte nový řádek do tabulky SouhrnVýdajů v souhrnném listu a potom zadejte příslušné podrobnosti o výdaji na listu měsíce, kterého se týkají.\"","v":"5. Pokud chcete pro některý měsíc přidat nové výdaje, přidejte nový řádek do tabulky SouhrnVýdajů v souhrnném listu a potom zadejte příslušné podrobnosti o výdaji na listu měsíce, kterého se týkají."}]

{"sheet":"souhrn","index":1,"n_rows":10,"n_cols":15,"rows_kept":10}
["TRENDY VÝDAJŮ"]
[null,"Leden","Únor","Březen","Duben","Květen","Červen","Červenec","Srpen","Září","Říjen","Listopad","Prosinec","Tipy"]
[]
["Výdaje","Leden","Únor","Březen","Duben","Květen","Červen","Červenec","Srpen","Září","Říjen","Listopad","Prosinec","Celkem","Trend"]
["Výdaj 1",{"$f":"SUMIFS(VýdLed[Částka],VýdLed[Kategorie],SouhrnVýdajů[[#This Row],[Výdaje]])","v":{"v":330,"d":"330.00"}},{"$f":"SUMIFS(VýdÚno[Částka],VýdÚno[Kategorie],SouhrnVýdajů[[#This Row],[Výdaje]])","v":{"v":3750,"d":"3,750.00"}},{"$f":"SUMIFS(VýdBře[Částka],VýdBře[Kategorie],SouhrnVýdajů[[#This Row],[Výdaje]])","v":{"v":330,"d":"330.00"}},{"$f":"SUMIFS(VýdDub[Částka],VýdDub[Kategorie],SouhrnVýdajů[[#This Row],[Výdaje]])","v":{"v":450,"d":"450.00"}},{"$f":"SUMIFS(VýdKvě[Částka],VýdKvě[Kategorie],SouhrnVýdajů[[#This Row],[Výdaje]])","v":{"v":3750,"d":"3,750.00"}},{"$f":"SUMIFS(VýdČvn[Částka],VýdČvn[Kategorie],SouhrnVýdajů[[#This Row],[Výdaje]])","v":{"v":2010,"d":"2,010.00"}},{"$f":"SUMIFS(VýdČvc[Částka],VýdČvc[Kategorie],SouhrnVýdajů[[#This Row],[Výdaje]])","v":{"v":0,"d":"0.00"}},{"$f":"SUMIFS(VýdSrp[Částka],VýdSrp[Kategorie],SouhrnVýdajů[[#This Row],[Výdaje]])","v":{"v":0,"d":"0.00"}},{"$f":"SUMIFS(VýdZář[Částka],VýdZář[Kategorie],SouhrnVýdajů[[#This Row],[Výdaje]])","v":{"v":0,"d":"0.00"}},{"$f":"SUMIFS(VýdŘíj[Částka],VýdŘíj[Kategorie],SouhrnVýdajů[[#This Row],[Výdaje]])","v":{"v":0,"d":"0.00"}},{"$f":"SUMIFS(VýdLis[Částka],VýdLis[Kategorie],SouhrnVýdajů[[#This Row],[Výdaje]])","v":{"v":0,"d":"0.00"}},{"$f":"SUMIFS(VýdPro[Částka],VýdPro[Kategorie],SouhrnVýdajů[[#This Row],[Výdaje]])","v":{"v":2010,"d":"2,010.00"}},{"$f":"SUM(SouhrnVýdajů[[#This Row],[Leden]:[Prosinec]])","v":{"v":12630,"d":"12,630.00"}}]
["Výdaj 2",{"$f":"SUMIFS(VýdLed[Částka],VýdLed[Kategorie],SouhrnVýdajů[[#This Row],[Výdaje]])","v":{"v":2380,"d":"2,380.00"}},{"$f":"SUMIFS(VýdÚno[Částka],VýdÚno[Kategorie],SouhrnVýdajů[[#This Row],[Výdaje]])","v":{"v":2380,"d":"2,380.00"}},{"$f":"SUMIFS(VýdBře[Částka],VýdBře[Kategorie],SouhrnVýdajů[[#This Row],[Výdaje]])","v":{"v":2380,"d":"2,380.00"}},{"$f":"SUMIFS(VýdDub[Částka],VýdDub[Kategorie],SouhrnVýdajů[[#This Row],[Výdaje]])","v":{"v":1230,"d":"1,230.00"}},{"$f":"SUMIFS(VýdKvě[Částka],VýdKvě[Kategorie],SouhrnVýdajů[[#This Row],[Výdaje]])","v":{"v":1110,"d":"1,110.00"}},{"$f":"SUMIFS(VýdČvn[Částka],VýdČvn[Kategorie],SouhrnVýdajů[[#This Row],[Výdaje]])","v":{"v":980,"d":"980.00"}},{"$f":"SUMIFS(VýdČvc[Částka],VýdČvc[Kategorie],SouhrnVýdajů[[#This Row],[Výdaje]])","v":{"v":0,"d":"0.00"}},{"$f":"SUMIFS(VýdSrp[Částka],VýdSrp[Kategorie],SouhrnVýdajů[[#This Row],[Výdaje]])","v":{"v":0,"d":"0.00"}},{"$f":"SUMIFS(VýdZář[Částka],VýdZář[Kategorie],SouhrnVýdajů[[#This Row],[Výdaje]])","v":{"v":0,"d":"0.00"}},{"$f":"SUMIFS(VýdŘíj[Částka],VýdŘíj[Kategorie],SouhrnVýdajů[[#This Row],[Výdaje]])","v":{"v":0,"d":"0.00"}},{"$f":"SUMIFS(VýdLis[Částka],VýdLis[Kategorie],SouhrnVýdajů[[#This Row],[Výdaje]])","v":{"v":0,"d":"0.00"}},{"$f":"SUMIFS(VýdPro[Částka],VýdPro[Kategorie],SouhrnVýdajů[[#This Row],[Výdaje]])","v":{"v":4400,"d":"4,400.00"}},{"$f":"SUM(SouhrnVýdajů[[#This Row],[Leden]:[Prosinec]])","v":{"v":14860,"d":"14,860.00"}}]
["Výdaj 3",{"$f":"SUMIFS(VýdLed[Částka],VýdLed[Kategorie],SouhrnVýdajů[[#This Row],[Výdaje]])","v":{"v":1100,"d":"1,100.00"}},{"$f":"SUMIFS(VýdÚno[Částka],VýdÚno[Kategorie],SouhrnVýdajů[[#This Row],[Výdaje]])","v":{"v":1100,"d":"1,100.00"}},{"$f":"SUMIFS(VýdBře[Částka],VýdBře[Kategorie],SouhrnVýdajů[[#This Row],[Výdaje]])","v":{"v":1100,"d":"1,100.00"}},{"$f":"SUMIFS(VýdDub[Částka],VýdDub[Kategorie],SouhrnVýdajů[[#This Row],[Výdaje]])","v":{"v":1250,"d":"1,250.00"}},{"$f":"SUMIFS(VýdKvě[Částka],VýdKvě[Kategorie],SouhrnVýdajů[[#This Row],[Výdaje]])","v":{"v":3330,"d":"3,330.00"}},{"$f":"SUMIFS(VýdČvn[Částka],VýdČvn[Kategorie],SouhrnVýdajů[[#This Row],[Výdaje]])","v":{"v":1220,"d":"1,220.00"}},{"$f":"SUMIFS(VýdČvc[Částka],VýdČvc[Kategorie],SouhrnVýdajů[[#This Row],[Výdaje]])","v":{"v":0,"d":"0.00"}},{"$f":"SUMIFS(VýdSrp[Částka],VýdSrp[Kategorie],SouhrnVýdajů[[#This Row],[Výdaje]])","v":{"v":0,"d":"0.00"}},{"$f":"SUMIFS(VýdZář[Částka],VýdZář[Kategorie],SouhrnVýdajů[[#This Row],[Výdaje]])","v":{"v":0,"d":"0.00"}},{"$f":"SUMIFS(VýdŘíj[Částka],VýdŘíj[Kategorie],SouhrnVýdajů[[#This Row],[Výdaje]])","v":{"v":0,"d":"0.00"}},{"$f":"SUMIFS(VýdLis[Částka],VýdLis[Kategorie],SouhrnVýdajů[[#This Row],[Výdaje]])","v":{"v":0,"d":"0.00"}},{"$f":"SUMIFS(VýdPro[Částka],VýdPro[Kategorie],SouhrnVýdajů[[#This Row],[Výdaje]])","v":{"v":1220,"d":"1,220.00"}},{"$f":"SUM(SouhrnVýdajů[[#This Row],[Leden]:[Prosinec]])","v":{"v":10320,"d":"10,320.00"}}]
["Výdaj 4",{"$f":"SUMIFS(VýdLed[Částka],VýdLed[Kategorie],SouhrnVýdajů[[#This Row],[Výdaje]])","v":{"v":4260,"d":"4,260.00"}},{"$f":"SUMIFS(VýdÚno[Částka],VýdÚno[Kategorie],SouhrnVýdajů[[#This Row],[Výdaje]])","v":{"v":840,"d":"840.00"}},{"$f":"SUMIFS(VýdBře[Částka],VýdBře[Kategorie],SouhrnVýdajů[[#This Row],[Výdaje]])","v":{"v":840,"d":"840.00"}},{"$f":"SUMIFS(VýdDub[Částka],VýdDub[Kategorie],SouhrnVýdajů[[#This Row],[Výdaje]])","v":{"v":4260,"d":"4,260.00"}},{"$f":"SUMIFS(VýdKvě[Částka],VýdKvě[Kategorie],SouhrnVýdajů[[#This Row],[Výdaje]])","v":{"v":1250,"d":"1,250.00"}},{"$f":"SUMIFS(VýdČvn[Částka],VýdČvn[Kategorie],SouhrnVýdajů[[#This Row],[Výdaje]])","v":{"v":1870,"d":"1,870.00"}},{"$f":"SUMIFS(VýdČvc[Částka],VýdČvc[Kategorie],SouhrnVýdajů[[#This Row],[Výdaje]])","v":{"v":0,"d":"0.00"}},{"$f":"SUMIFS(VýdSrp[Částka],VýdSrp[Kategorie],SouhrnVýdajů[[#This Row],[Výdaje]])","v":{"v":0,"d":"0.00"}},{"$f":"SUMIFS(VýdZář[Částka],VýdZář[Kategorie],SouhrnVýdajů[[#This Row],[Výdaje]])","v":{"v":0,"d":"0.00"}},{"$f":"SUMIFS(VýdŘíj[Částka],VýdŘíj[Kategorie],SouhrnVýdajů[[#This Row],[Výdaje]])","v":{"v":0,"d":"0.00"}},{"$f":"SUMIFS(VýdLis[Částka],VýdLis[Kategorie],SouhrnVýdajů[[#This Row],[Výdaje]])","v":{"v":0,"d":"0.00"}},{"$f":"SUMIFS(VýdPro[Částka],VýdPro[Kategorie],SouhrnVýdajů[[#This Row],[Výdaje]])","v":{"v":1870,"d":"1,870.00"}},{"$f":"SUM(SouhrnVýdajů[[#This Row],[Leden]:[Prosinec]])","v":{"v":15190,"d":"15,190.00"}}]
["Výdaj 5",{"$f":"SUMIFS(VýdLed[Částka],VýdLed[Kategorie],SouhrnVýdajů[[#This Row],[Výdaje]])","v":{"v":540,"d":"540.00"}},{"$f":"SUMIFS(VýdÚno[Částka],VýdÚno[Kategorie],SouhrnVýdajů[[#This Row],[Výdaje]])","v":{"v":540,"d":"540.00"}},{"$f":"SUMIFS(VýdBře[Částka],VýdBře[Kategorie],SouhrnVýdajů[[#This Row],[Výdaje]])","v":{"v":1090,"d":"1,090.00"}},{"$f":"SUMIFS(VýdDub[Částka],VýdDub[Kategorie],SouhrnVýdajů[[#This Row],[Výdaje]])","v":{"v":980,"d":"980.00"}},{"$f":"SUMIFS(VýdKvě[Částka],VýdKvě[Kategorie],SouhrnVýdajů[[#This Row],[Výdaje]])","v":{"v":330,"d":"330.00"}},{"$f":"SUMIFS(VýdČvn[Částka],VýdČvn[Kategorie],SouhrnVýdajů[[#This Row],[Výdaje]])","v":{"v":4410,"d":"4,410.00"}},{"$f":"SUMIFS(VýdČvc[Částka],VýdČvc[Kategorie],SouhrnVýdajů[[#This Row],[Výdaje]])","v":{"v":0,"d":"0.00"}},{"$f":"SUMIFS(VýdSrp[Částka],VýdSrp[Kategorie],SouhrnVýdajů[[#This Row],[Výdaje]])","v":{"v":0,"d":"0.00"}},{"$f":"SUMIFS(VýdZář[Částka],VýdZář[Kategorie],SouhrnVýdajů[[#This Row],[Výdaje]])","v":{"v":0,"d":"0.00"}},{"$f":"SUMIFS(VýdŘíj[Částka],VýdŘíj[Kategorie],SouhrnVýdajů[[#This Row],[Výdaje]])","v":{"v":0,"d":"0.00"}},{"$f":"SUMIFS(VýdLis[Částka],VýdLis[Kategorie],SouhrnVýdajů[[#This Row],[Výdaje]])","v":{"v":0,"d":"0.00"}},{"$f":"SUMIFS(VýdPro[Částka],VýdPro[Kategorie],SouhrnVýdajů[[#This Row],[Výdaje]])","v":{"v":990,"d":"990.00"}},{"$f":"SUM(SouhrnVýdajů[[#This Row],[Leden]:[Prosinec]])","v":{"v":8880,"d":"8,880.00"}}]
["Celkem",{"$f":"SUBTOTAL(109,SouhrnVýdajů[Leden])","v":{"v":8610,"d":"8,610.00"}},{"$f":"SUBTOTAL(109,SouhrnVýdajů[Únor])","v":{"v":8610,"d":"8,610.00"}},{"$f":"SUBTOTAL(109,SouhrnVýdajů[Březen])","v":{"v":5740,"d":"5,740.00"}},{"$f":"SUBTOTAL(109,SouhrnVýdajů[Duben])","v":{"v":8170,"d":"8,170.00"}},{"$f":"SUBTOTAL(109,SouhrnVýdajů[Květen])","v":{"v":9770,"d":"9,770.00"}},{"$f":"SUBTOTAL(109,SouhrnVýdajů[Červen])","v":{"v":10490,"d":"10,490.00"}},{"$f":"SUBTOTAL(109,SouhrnVýdajů[Červenec])","v":{"v":0,"d":"0.00"}},{"$f":"SUBTOTAL(109,SouhrnVýdajů[Srpen])","v":{"v":0,"d":"0.00"}},{"$f":"SUBTOTAL(109,SouhrnVýdajů[Září])","v":{"v":0,"d":"0.00"}},{"$f":"SUBTOTAL(109,SouhrnVýdajů[Říjen])","v":{"v":0,"d":"0.00"}},{"$f":"SUBTOTAL(109,SouhrnVýdajů[Listopad])","v":{"v":0,"d":"0.00"}},{"$f":"SUBTOTAL(109,SouhrnVýdajů[Prosinec])","v":{"v":10490,"d":"10,490.00"}},{"$f":"SUBTOTAL(109,SouhrnVýdajů[Celkem])","v":{"v":61880,"d":"61,880.00"}}]

{"sheet":"I","index":2,"n_rows":9,"n_cols":5,"rows_kept":9,"merged":[[0,0,0,2]]}
["VÝDAJE ZA LEDEN",null,null,"Souhrn","Tipy"]
["Datum","ČÍSLO NO","Částka","Kategorie","Popis"]
[{"$f":"DATE(YEAR(TODAY()),1,4)","v":"2017-01-04"},"A-12345",{"v":330,"d":"330.00"},"Výdaj 1","Zásoby"]
[{"$f":"DATE(YEAR(TODAY()),1,5)","v":"2017-01-05"},"A-12346",{"v":2380,"d":"2,380.00"},"Výdaj 2"]
[null,null,{"v":3420,"d":"3,420.00"},"Výdaj 4"]
[null,null,{"v":1100,"d":"1,100.00"},"Výdaj 3"]
[null,null,{"v":840,"d":"840.00"},"Výdaj 4"]
[null,null,{"v":540,"d":"540.00"},"Výdaj 5"]
["Celkem",null,{"$f":"SUBTOTAL(109,VýdLed[Částka])","v":{"v":8610,"d":"8,610.00"}}]

{"sheet":"II","index":3,"n_rows":9,"n_cols":5,"rows_kept":9,"merged":[[0,0,0,2]]}
["VÝDAJE ZA ÚNOR",null,null,"Souhrn","Tipy"]
["Datum","ČÍSLO NO","Částka","Kategorie","Popis"]
[{"$f":"DATE(YEAR(TODAY()),2,3)","v":"2017-02-03"},"A-12345",{"v":330,"d":"330.00"},"Výdaj 1","Zásoby"]
[{"$f":"DATE(YEAR(TODAY()),2,4)","v":"2017-02-04"},"A-12346",{"v":2380,"d":"2,380.00"},"Výdaj 2"]
[null,null,{"v":3420,"d":"3,420.00"},"Výdaj 1"]
[null,null,{"v":1100,"d":"1,100.00"},"Výdaj 3"]
[null,null,{"v":840,"d":"840.00"},"Výdaj 4"]
[null,null,{"v":540,"d":"540.00"},"Výdaj 5"]
["Celkem",null,{"$f":"SUBTOTAL(109,VýdÚno[Částka])","v":{"v":8610,"d":"8,610.00"}}]

{"sheet":"III","index":4,"n_rows":9,"n_cols":5,"rows_kept":9,"merged":[[0,0,0,2]]}
["VÝDAJE ZA BŘEZEN",null,null,"Souhrn","Tipy"]
["Datum","ČÍSLO NO","Částka","Kategorie","Popis"]
[{"$f":"DATE(YEAR(TODAY()),3,5)","v":"2017-03-05"},"A-12345",{"v":330,"d":"330.00"},"Výdaj 1","Zásoby"]
[{"$f":"DATE(YEAR(TODAY()),3,6)","v":"2017-03-06"},"A-12346",{"v":2380,"d":"2,380.00"},"Výdaj 2"]
[null,null,{"v":550,"d":"550.00"},"Výdaj 5"]
[null,null,{"v":1100,"d":"1,100.00"},"Výdaj 3"]
[null,null,{"v":840,"d":"840.00"},"Výdaj 4"]
[null,null,{"v":540,"d":"540.00"},"Výdaj 5"]
["Celkem",null,{"$f":"SUBTOTAL(109,VýdBře[Částka])","v":{"v":5740,"d":"5,740.00"}}]

{"sheet":"IV","index":5,"n_rows":9,"n_cols":5,"rows_kept":9,"merged":[[0,0,0,2]]}
["VÝDAJE ZA DUBEN",null,null,"Souhrn","Tipy"]
["Datum","ČÍSLO NO","Částka","Kategorie","Popis"]
[{"$f":"DATE(YEAR(TODAY()),4,4)","v":"2017-04-04"},"A-12345",{"v":450,"d":"450.00"},"Výdaj 1","Zásoby"]
[{"$f":"DATE(YEAR(TODAY()),4,8)","v":"2017-04-08"},"A-12346",{"v":1230,"d":"1,230.00"},"Výdaj 2"]
[null,null,{"v":3420,"d":"3,420.00"},"Výdaj 4"]
[null,null,{"v":1250,"d":"1,250.00"},"Výdaj 3"]
[null,null,{"v":840,"d":"840.00"},"Výdaj 4"]
[null,null,{"v":980,"d":"980.00"},"Výdaj 5"]
["Celkem",null,{"$f":"SUBTOTAL(109,VýdDub[Částka])","v":{"v":8170,"d":"8,170.00"}}]

{"sheet":"V","index":6,"n_rows":9,"n_cols":5,"rows_kept":9,"merged":[[0,0,0,2]]}
["VÝDAJE ZA KVĚTEN",null,null,"Souhrn","Tipy"]
["Datum","ČÍSLO NO","Částka","Kategorie","Popis"]
[{"$f":"DATE(YEAR(TODAY()),5,3)","v":"2017-05-03"},"A-12345",{"v":330,"d":"330.00"},"Výdaj 1","Zásoby"]
[{"$f":"DATE(YEAR(TODAY()),5,8)","v":"2017-05-08"},"A-12346",{"v":1110,"d":"1,110.00"},"Výdaj 2"]
[null,null,{"v":3420,"d":"3,420.00"},"Výdaj 1"]
[null,null,{"v":3330,"d":"3,330.00"},"Výdaj 3"]
[null,null,{"v":1250,"d":"1,250.00"},"Výdaj 4"]
[null,null,{"v":330,"d":"330.00"},"Výdaj 5"]
["Celkem",null,{"$f":"SUBTOTAL(109,VýdKvě[Částka])","v":{"v":9770,"d":"9,770.00"}}]

{"sheet":"VI","index":7,"n_rows":9,"n_cols":5,"rows_kept":9,"merged":[[0,0,0,2]]}
["VÝDAJE ZA ČERVEN",null,null,"Souhrn","Tipy"]
["Datum","ČÍSLO NO","Částka","Kategorie","Popis"]
[{"$f":"DATE(YEAR(TODAY()),6,7)","v":"2017-06-07"},"A-12345",{"v":2010,"d":"2,010.00"},"Výdaj 1","Zásoby"]
[{"$f":"DATE(YEAR(TODAY()),6,8)","v":"2017-06-08"},"A-12346",{"v":980,"d":"980.00"},"Výdaj 2"]
[null,null,{"v":3420,"d":"3,420.00"},"Výdaj 5"]
[null,null,{"v":1220,"d":"1,220.00"},"Výdaj 3"]
[null,null,{"v":1870,"d":"1,870.00"},"Výdaj 4"]
[null,null,{"v":990,"d":"990.00"},"Výdaj 5"]
["Celkem",null,{"$f":"SUBTOTAL(109,VýdČvn[Částka])","v":{"v":10490,"d":"10,490.00"}}]

{"sheet":"VII","index":8,"n_rows":9,"n_cols":5,"rows_kept":9,"merged":[[0,0,0,2]]}
["VÝDAJE ZA ČERVENEC",null,null,"Souhrn","Tipy"]
["Datum","ČÍSLO NO","Částka","Kategorie","Popis"]
[{"$f":"DATE(YEAR(TODAY()),7,9)","v":"2017-07-09"},"A-12345",null,"Výdaj 1","Zásoby"]
[{"$f":"DATE(YEAR(TODAY()),7,14)","v":"2017-07-14"},"A-12346",null,"Výdaj 2"]
[{"$nulls":3},"Výdaj 2"]
[{"$nulls":3},"Výdaj 3"]
[{"$nulls":3},"Výdaj 4"]
[{"$nulls":3},"Výdaj 5"]
["Celkem",null,{"$f":"SUBTOTAL(109,VýdČvc[Částka])","v":{"v":0,"d":"0.00"}}]

{"sheet":"VIII","index":9,"n_rows":9,"n_cols":5,"rows_kept":9,"merged":[[0,0,0,2]]}
["VÝDAJE ZA SRPEN",null,null,"Souhrn","Tipy"]
["Datum","ČÍSLO NO","Částka","Kategorie","Popis"]
[{"$f":"DATE(YEAR(TODAY()),8,8)","v":"2017-08-08"},"A-12345",null,"Výdaj 1","Zásoby"]
[{"$f":"DATE(YEAR(TODAY()),8,9)","v":"2017-08-09"},"A-12346",null,"Výdaj 2"]
[{"$nulls":3},"Výdaj 2"]
[{"$nulls":3},"Výdaj 3"]
[{"$nulls":3},"Výdaj 4"]
[{"$nulls":3},"Výdaj 5"]
["Celkem",null,{"$f":"SUBTOTAL(109,VýdSrp[Částka])","v":{"v":0,"d":"0.00"}}]

{"sheet":"IX","index":10,"n_rows":9,"n_cols":5,"rows_kept":9,"merged":[[0,0,0,2]]}
["VÝDAJE ZA ZÁŘÍ",null,null,"Souhrn","Tipy"]
["Datum","ČÍSLO NO","Částka","Kategorie","Popis"]
[{"$f":"DATE(YEAR(TODAY()),9,9)","v":"2017-09-09"},"A-12345",null,"Výdaj 1","Zásoby"]
[{"$f":"DATE(YEAR(TODAY()),9,15)","v":"2017-09-15"},"A-12346",null,"Výdaj 2"]
[{"$nulls":3},"Výdaj 2"]
[{"$nulls":3},"Výdaj 3"]
[{"$nulls":3},"Výdaj 4"]
[{"$nulls":3},"Výdaj 5"]
["Celkem",null,{"$f":"SUBTOTAL(109,VýdZář[Částka])","v":{"v":0,"d":"0.00"}}]

{"sheet":"X","index":11,"n_rows":9,"n_cols":5,"rows_kept":9,"merged":[[0,0,0,2]]}
["VÝDAJE ZA ŘÍJEN",null,null,"Souhrn","Tipy"]
["Datum","ČÍSLO NO","Částka","Kategorie","Popis"]
[{"$f":"DATE(YEAR(TODAY()),10,10)","v":"2017-10-10"},"A-12345",null,"Výdaj 1","Zásoby"]
[{"$f":"DATE(YEAR(TODAY()),10,21)","v":"2017-10-21"},"A-12346",null,"Výdaj 2"]
[{"$nulls":3},"Výdaj 2"]
[{"$nulls":3},"Výdaj 3"]
[{"$nulls":3},"Výdaj 4"]
[{"$nulls":3},"Výdaj 5"]
["Celkem",null,{"$f":"SUBTOTAL(109,VýdŘíj[Částka])","v":{"v":0,"d":"0.00"}}]

{"sheet":"XI","index":12,"n_rows":9,"n_cols":5,"rows_kept":9,"merged":[[0,0,0,2]]}
["VÝDAJE ZA LISOTPAD",null,null,"Souhrn","Tipy"]
["Datum","ČÍSLO NO","Částka","Kategorie","Popis"]
[{"$f":"DATE(YEAR(TODAY()),11,14)","v":"2017-11-14"},"A-12345",null,"Výdaj 1","Zásoby"]
[{"$f":"DATE(YEAR(TODAY()),11,21)","v":"2017-11-21"},"A-12346",null,"Výdaj 2"]
[{"$nulls":3},"Výdaj 2"]
[{"$nulls":3},"Výdaj 3"]
[{"$nulls":3},"Výdaj 4"]
[{"$nulls":3},"Výdaj 5"]
["Celkem",null,{"$f":"SUBTOTAL(109,VýdLis[Částka])","v":{"v":0,"d":"0.00"}}]

{"sheet":"XII","index":13,"n_rows":9,"n_cols":5,"rows_kept":9,"merged":[[0,0,0,2]]}
["VÝDAJE ZA PROSINEC",null,null,"Souhrn","Tipy"]
["Datum","ČÍSLO NO","Částka","Kategorie","Popis"]
[{"$f":"DATE(YEAR(TODAY()),12,2)","v":"2017-12-02"},"A-12345",{"v":2010,"d":"2,010.00"},"Výdaj 1","Zásoby"]
[{"$f":"DATE(YEAR(TODAY()),12,24)","v":"2017-12-24"},"A-12346",{"v":980,"d":"980.00"},"Výdaj 2"]
[null,null,{"v":3420,"d":"3,420.00"},"Výdaj 2"]
[null,null,{"v":1220,"d":"1,220.00"},"Výdaj 3"]
[null,null,{"v":1870,"d":"1,870.00"},"Výdaj 4"]
[null,null,{"v":990,"d":"990.00"},"Výdaj 5"]
["Celkem",null,{"$f":"SUBTOTAL(109,VýdPro[Částka])","v":{"v":10490,"d":"10,490.00"}}]